[Event "Late-Titled-Tuesday-Blitz-June-25-2024"]
[Site "Chess.com"]
[Date "2024.06.25"]
[Round "3"]
[White "VaglioSagan"]
[Black "Connectedcloud"]
[Result "0-1"]
[WhiteElo "2544"]
[BlackElo "2329"]
[TimeControl "180+1"]
[EndTime "14:28:22 PDT"]
[Termination "Connectedcloud won on time"]

1. d4 {[%clk 0:02:50.7]} 1... Nf6 {[%clk 0:02:59.7]} 2. Nf3 {[%clk 0:02:50.1]}
2... e6 {[%clk 0:02:58.5]} 3. c4 {[%clk 0:02:50]} 3... d5 {[%clk 0:02:58.2]} 4.
Nc3 {[%clk 0:02:50.3]} 4... Be7 {[%clk 0:02:57.8]} 5. Bf4 {[%clk 0:02:49.7]}
5... O-O {[%clk 0:02:53.6]} 6. e3 {[%clk 0:02:49.8]} 6... c5 {[%clk 0:02:50.7]}
7. dxc5 {[%clk 0:02:49.3]} 7... Qa5 {[%clk 0:02:48.6]} 8. Nd2 {[%clk 0:02:05]}
8... dxc4 {[%clk 0:02:09]} 9. Nxc4 {[%clk 0:01:56.6]} 9... Qxc5 {[%clk
0:02:07.8]} 10. Bd6 {[%clk 0:01:57.2]} 10... Bxd6 {[%clk 0:02:06.8]} 11. Qxd6
{[%clk 0:01:58.1]} 11... Qxd6 {[%clk 0:01:57.4]} 12. Nxd6 {[%clk 0:01:58.3]}
12... Nc6 {[%clk 0:01:58]} 13. O-O-O {[%clk 0:01:57.3]} 13... Rd8 {[%clk
0:01:49.3]} 14. Bc4 {[%clk 0:01:26.6]} 14... Ng4 {[%clk 0:01:36.6]} 15. Rd2
{[%clk 0:01:23.4]} 15... Nxf2 {[%clk 0:01:28.5]} 16. Re1 {[%clk 0:00:57.6]}
16... Ng4 {[%clk 0:01:20.1]} 17. h3 {[%clk 0:00:54.6]} 17... Nge5 {[%clk
0:01:19.7]} 18. Bb3 {[%clk 0:00:53.4]} 18... b6 {[%clk 0:01:18.3]} 19. Red1
{[%clk 0:00:47.9]} 19... Ba6 {[%clk 0:01:17.3]} 20. Kb1 {[%clk 0:00:45.1]} 20...
Nb4 {[%clk 0:01:13.3]} 21. a3 {[%clk 0:00:40.9]} 21... Bd3+ {[%clk 0:01:06.7]}
22. Ka1 {[%clk 0:00:39.8]} 22... Rxd6 {[%clk 0:01:05.7]} 23. axb4 {[%clk
0:00:39.8]} 23... Rad8 {[%clk 0:01:02.8]} 24. Nb5 {[%clk 0:00:38.5]} 24... R6d7
{[%clk 0:01:00.8]} 25. Nd4 {[%clk 0:00:35.8]} 25... Bc4 {[%clk 0:01:00.8]} 26.
Ba4 {[%clk 0:00:35.6]} 26... b5 {[%clk 0:00:58.4]} 27. Bc2 {[%clk 0:00:34.9]}
27... Kf8 {[%clk 0:00:55.6]} 28. b3 {[%clk 0:00:35.3]} 28... Bd5 {[%clk
0:00:52.4]} 29. Nxb5 {[%clk 0:00:35.3]} 29... Ke7 {[%clk 0:00:51.9]} 30. Kb2
{[%clk 0:00:35.3]} 30... a6 {[%clk 0:00:50.4]} 31. Nd4 {[%clk 0:00:28.5]} 31...
Rb8 {[%clk 0:00:46.7]} 32. Ra1 {[%clk 0:00:27.9]} 32... Rd6 {[%clk 0:00:41.2]}
33. Ra4 {[%clk 0:00:24.5]} 33... Nc6 {[%clk 0:00:39]} 34. e4 {[%clk 0:00:20]}
34... Bxe4 {[%clk 0:00:35.2]} 35. Bxe4 {[%clk 0:00:20.3]} 35... Rxd4 {[%clk
0:00:34.9]} 36. Rxd4 {[%clk 0:00:19]} 36... Nxd4 {[%clk 0:00:35.2]} 37. Rxa6
{[%clk 0:00:19.7]} 37... Rxb4 {[%clk 0:00:33.4]} 38. Kc3 {[%clk 0:00:20.3]}
38... Rxb3+ {[%clk 0:00:30.3]} 39. Kxd4 {[%clk 0:00:20.2]} 39... Rb4+ {[%clk
0:00:31]} 40. Ke3 {[%clk 0:00:19.6]} 40... g6 {[%clk 0:00:31.2]} 41. g4 {[%clk
0:00:19.3]} 41... Kf6 {[%clk 0:00:30.7]} 42. h4 {[%clk 0:00:18.6]} 42... Rb3+
{[%clk 0:00:31]} 43. Kf2 {[%clk 0:00:18.5]} 43... Rb4 {[%clk 0:00:30.8]} 44. Bf3
{[%clk 0:00:18.4]} 44... h5 {[%clk 0:00:30.4]} 45. g5+ {[%clk 0:00:18.2]} 45...
Kg7 {[%clk 0:00:29.4]} 46. Kg3 {[%clk 0:00:17.7]} 46... Rb3 {[%clk 0:00:29]} 47.
Ra7 {[%clk 0:00:17.5]} 47... Rc3 {[%clk 0:00:27.2]} 48. Rb7 {[%clk 0:00:17.5]}
48... Rd3 {[%clk 0:00:26.2]} 49. Kf2 {[%clk 0:00:16.7]} 49... Rd4 {[%clk
0:00:25.8]} 50. Kg3 {[%clk 0:00:14.3]} 50... Rd3 {[%clk 0:00:26.1]} 51. Rb4
{[%clk 0:00:14.1]} 51... Ra3 {[%clk 0:00:24.9]} 52. Rf4 {[%clk 0:00:11.3]} 52...
e5 {[%clk 0:00:24.6]} 53. Re4 {[%clk 0:00:11.8]} 53... f6 {[%clk 0:00:24.9]} 54.
gxf6+ {[%clk 0:00:11.7]} 54... Kxf6 {[%clk 0:00:25.1]} 55. Rb4 {[%clk
0:00:12.4]} 55... Kf5 {[%clk 0:00:23.9]} 56. Rb5 {[%clk 0:00:12.2]} 56... Ra4
{[%clk 0:00:22.5]} 57. Rb8 {[%clk 0:00:11.2]} 57... Kf6 {[%clk 0:00:17]} 58.
Rf8+ {[%clk 0:00:10.4]} 58... Kg7 {[%clk 0:00:17.3]} 59. Re8 {[%clk 0:00:10.1]}
59... Kf6 {[%clk 0:00:17.7]} 60. Rf8+ {[%clk 0:00:09.7]} 60... Kg7 {[%clk
0:00:18.1]} 61. Rb8 {[%clk 0:00:10.5]} 61... Kf6 {[%clk 0:00:18.4]} 62. Rb6+
{[%clk 0:00:08.8]} 62... Kg7 {[%clk 0:00:18.7]} 63. Re6 {[%clk 0:00:08.6]} 63...
Ra5 {[%clk 0:00:17.7]} 64. Be4 {[%clk 0:00:09.2]} 64... Ra3+ {[%clk 0:00:17.3]}
0-1

[Event "Late-Titled-Tuesday-Blitz-June-25-2024"]
[Site "Chess.com"]
[Date "2024.06.25"]
[Round "3"]
[White "dasatcu90"]
[Black "Slovineanu"]
[Result "0-1"]
[WhiteElo "2282"]
[BlackElo "2550"]
[TimeControl "180+1"]
[EndTime "14:28:25 PDT"]
[Termination "Slovineanu won on time"]

1. d4 {[%clk 0:03:00.9]} 1... Nf6 {[%clk 0:02:57.5]} 2. Nf3 {[%clk 0:03:00.9]}
2... d5 {[%clk 0:02:57.2]} 3. g3 {[%clk 0:03:00.9]} 3... e6 {[%clk 0:02:54.8]}
4. Bg2 {[%clk 0:03:00.5]} 4... Be7 {[%clk 0:02:54.6]} 5. O-O {[%clk 0:03:00]}
5... O-O {[%clk 0:02:55.2]} 6. c4 {[%clk 0:02:57.7]} 6... dxc4 {[%clk
0:02:56.1]} 7. Ne5 {[%clk 0:02:55.6]} 7... Nc6 {[%clk 0:02:54.4]} 8. Bxc6 {[%clk
0:02:51]} 8... bxc6 {[%clk 0:02:54.3]} 9. Qa4 {[%clk 0:02:48]} 9... Bb7 {[%clk
0:02:30.6]} 10. Qxc4 {[%clk 0:02:45.8]} 10... Qd5 {[%clk 0:02:26.8]} 11. Nc3
{[%clk 0:02:31.6]} 11... Qxc4 {[%clk 0:02:19.5]} 12. Nxc4 {[%clk 0:02:32.5]}
12... c5 {[%clk 0:02:09.9]} 13. dxc5 {[%clk 0:02:15.5]} 13... Bxc5 {[%clk
0:02:10]} 14. Be3 {[%clk 0:02:16.1]} 14... Bb6 {[%clk 0:01:48.5]} 15. Rfd1
{[%clk 0:02:12.1]} 15... Ba6 {[%clk 0:01:38.3]} 16. Nxb6 {[%clk 0:02:01.2]}
16... axb6 {[%clk 0:01:38.2]} 17. Rd2 {[%clk 0:01:57]} 17... Rfd8 {[%clk
0:01:36.9]} 18. Rad1 {[%clk 0:01:56.2]} 18... Rxd2 {[%clk 0:01:33.9]} 19. Rxd2
{[%clk 0:01:57.1]} 19... Kf8 {[%clk 0:01:32.7]} 20. Bf4 {[%clk 0:01:50.1]} 20...
Rc8 {[%clk 0:01:27]} 21. e4 {[%clk 0:01:40.9]} 21... Ke8 {[%clk 0:01:18.7]} 22.
Be5 {[%clk 0:01:24]} 22... Bb7 {[%clk 0:01:06.3]} 23. f3 {[%clk 0:01:16.9]}
23... Rd8 {[%clk 0:00:45.4]} 24. Rxd8+ {[%clk 0:01:15.8]} 24... Kxd8 {[%clk
0:00:45.7]} 25. Nb5 {[%clk 0:01:06.3]} 25... Ne8 {[%clk 0:00:45.7]} 26. Kf2
{[%clk 0:01:04.2]} 26... f6 {[%clk 0:00:45.2]} 27. Bd4 {[%clk 0:01:02.6]} 27...
Ba6 {[%clk 0:00:44.8]} 28. Nc3 {[%clk 0:01:02.1]} 28... c5 {[%clk 0:00:42.4]}
29. Be3 {[%clk 0:01:01.4]} 29... Kd7 {[%clk 0:00:42.5]} 30. f4 {[%clk
0:01:00.8]} 30... Kc6 {[%clk 0:00:42]} 31. f5 {[%clk 0:00:50.2]} 31... exf5
{[%clk 0:00:34.8]} 32. exf5 {[%clk 0:00:51.1]} 32... Nd6 {[%clk 0:00:35]} 33. g4
{[%clk 0:00:49.5]} 33... Bd3 {[%clk 0:00:30.3]} 34. Kf3 {[%clk 0:00:48.9]} 34...
b5 {[%clk 0:00:27.6]} 35. a3 {[%clk 0:00:46.6]} 35... h6 {[%clk 0:00:20.3]} 36.
Bf4 {[%clk 0:00:45.4]} 36... Nc4 {[%clk 0:00:20]} 37. Bc1 {[%clk 0:00:41.2]}
37... Bc2 {[%clk 0:00:18.3]} 38. h4 {[%clk 0:00:35.1]} 38... Ne5+ {[%clk
0:00:16.8]} 39. Kg3 {[%clk 0:00:34.5]} 39... Nd3 {[%clk 0:00:16.9]} 40. Na2
{[%clk 0:00:24.3]} 40... Bb3 {[%clk 0:00:15]} 41. g5 {[%clk 0:00:17.5]} 41...
hxg5 {[%clk 0:00:14.1]} 42. hxg5 {[%clk 0:00:17.4]} 42... Bxa2 {[%clk
0:00:14.3]} 43. Be3 {[%clk 0:00:13.2]} 43... fxg5 {[%clk 0:00:11.5]} 44. Bxg5
{[%clk 0:00:13.1]} 44... Nxb2 {[%clk 0:00:10.9]} 45. Kf4 {[%clk 0:00:07.4]}
45... Nc4 {[%clk 0:00:10.7]} 46. f6 {[%clk 0:00:03.6]} 46... gxf6 {[%clk
0:00:10.6]} 47. Bxf6 {[%clk 0:00:04.5]} 47... Nxa3 {[%clk 0:00:10.8]} 48. Ke3
{[%clk 0:00:05.1]} 48... b4 {[%clk 0:00:11.3]} 49. Kd2 {[%clk 0:00:05.6]} 49...
Kb5 {[%clk 0:00:12.2]} 50. Kc1 {[%clk 0:00:05.7]} 50... Nc4 {[%clk 0:00:12.6]}
51. Bg7 {[%clk 0:00:04.9]} 51... Bb3 {[%clk 0:00:11.6]} 52. Bf8 {[%clk
0:00:05.5]} 52... Ba4 {[%clk 0:00:11.4]} 53. Kb1 {[%clk 0:00:06.2]} 53... Nb6
{[%clk 0:00:11.5]} 54. Kb2 {[%clk 0:00:06.4]} 54... c4 {[%clk 0:00:11.9]} 55.
Ka1 {[%clk 0:00:06.5]} 55... c3 {[%clk 0:00:12]} 56. Bg7 {[%clk 0:00:06.2]}
56... Kc4 {[%clk 0:00:12.2]} 57. Kb1 {[%clk 0:00:06.2]} 57... Nd5 {[%clk
0:00:12.8]} 58. Ka1 {[%clk 0:00:06.2]} 58... b3 {[%clk 0:00:13]} 59. Kb1 {[%clk
0:00:04.8]} 59... b2 {[%clk 0:00:12.1]} 0-1

[Event "Late-Titled-Tuesday-Blitz-June-25-2024"]
[Site "Chess.com"]
[Date "2024.06.25"]
[Round "3"]
[White "ritanovikova"]
[Black "Cheer_Down"]
[Result "0-1"]
[WhiteElo "2250"]
[BlackElo "2500"]
[TimeControl "180+1"]
[EndTime "14:28:30 PDT"]
[Termination "Cheer_Down won by resignation"]

1. e4 {[%clk 0:03:00]} 1... e6 {[%clk 0:03:00.3]} 2. d4 {[%clk 0:02:59.9]} 2...
d5 {[%clk 0:03:00.6]} 3. exd5 {[%clk 0:03:00.1]} 3... exd5 {[%clk 0:03:00.6]} 4.
Bd3 {[%clk 0:03:00.1]} 4... c5 {[%clk 0:03:00.1]} 5. dxc5 {[%clk 0:02:59.9]}
5... Bxc5 {[%clk 0:02:59.7]} 6. Nf3 {[%clk 0:03:00.2]} 6... Nf6 {[%clk 0:03:00]}
7. O-O {[%clk 0:03:00.6]} 7... O-O {[%clk 0:03:00.3]} 8. h3 {[%clk 0:03:00.6]}
8... h6 {[%clk 0:02:58.3]} 9. Re1 {[%clk 0:02:58.3]} 9... Nc6 {[%clk 0:02:57.2]}
10. Be3 {[%clk 0:02:56.6]} 10... d4 {[%clk 0:02:38.3]} 11. Bf4 {[%clk
0:02:50.5]} 11... Be6 {[%clk 0:02:37.6]} 12. Nbd2 {[%clk 0:02:47.9]} 12... Nd5
{[%clk 0:02:35.7]} 13. Bg3 {[%clk 0:02:46.4]} 13... Qf6 {[%clk 0:02:31.7]} 14.
Ne4 {[%clk 0:02:44.1]} 14... Qe7 {[%clk 0:02:31.9]} 15. Nxc5 {[%clk 0:02:34.3]}
15... Qxc5 {[%clk 0:02:31.6]} 16. Qe2 {[%clk 0:02:28.8]} 16... Rfe8 {[%clk
0:02:17.7]} 17. Qd2 {[%clk 0:02:11.7]} 17... Rac8 {[%clk 0:02:03.6]} 18. a3
{[%clk 0:02:10.1]} 18... Bd7 {[%clk 0:01:58.3]} 19. Ne5 {[%clk 0:02:02.4]} 19...
Nxe5 {[%clk 0:01:51]} 20. Bxe5 {[%clk 0:02:00.6]} 20... Kf8 {[%clk 0:00:40.2]}
21. Rac1 {[%clk 0:01:21.1]} 21... Ne7 {[%clk 0:00:25.3]} 22. c3 {[%clk
0:01:16.3]} 22... dxc3 {[%clk 0:00:22.6]} 23. Bxc3 {[%clk 0:01:16.4]} 23... Qg5
{[%clk 0:00:13.9]} 24. Qc2 {[%clk 0:01:11.5]} 24... Bf5 {[%clk 0:00:11]} 25. Bb4
{[%clk 0:01:10.2]} 25... Rxc2 {[%clk 0:00:07.2]} 26. Bxc2 {[%clk 0:01:04.8]}
26... Bxc2 {[%clk 0:00:06.7]} 27. Rxc2 {[%clk 0:01:05]} 27... Kg8 {[%clk
0:00:06]} 28. Rce2 {[%clk 0:01:02.7]} 28... f6 {[%clk 0:00:04.6]} 29. Bxe7
{[%clk 0:01:02]} 29... Qb5 {[%clk 0:00:04.1]} 30. b4 {[%clk 0:00:57.3]} 30...
Kf7 {[%clk 0:00:03.6]} 31. Re3 {[%clk 0:00:56.4]} 31... Qd7 {[%clk 0:00:02.5]}
32. h4 {[%clk 0:00:52.4]} 32... h5 {[%clk 0:00:02.4]} 33. g3 {[%clk 0:00:52.2]}
33... Rxe7 {[%clk 0:00:02.2]} 34. Rxe7+ {[%clk 0:00:51.9]} 34... Qxe7 {[%clk
0:00:03.1]} 35. Rxe7+ {[%clk 0:00:52.1]} 35... Kxe7 {[%clk 0:00:04]} 36. Kf1
{[%clk 0:00:52.1]} 36... Kd7 {[%clk 0:00:03.5]} 37. Ke2 {[%clk 0:00:52.7]} 37...
Kc6 {[%clk 0:00:04.1]} 38. Kd3 {[%clk 0:00:52.8]} 38... Kb5 {[%clk 0:00:04.7]}
39. Kc3 {[%clk 0:00:51]} 39... Ka4 {[%clk 0:00:05]} 40. Kb2 {[%clk 0:00:51.2]}
40... g6 {[%clk 0:00:04.2]} 41. Ka2 {[%clk 0:00:50.7]} 41... g5 {[%clk
0:00:03.6]} 42. Kb2 {[%clk 0:00:48.6]} 42... g4 {[%clk 0:00:03.9]} 43. Ka2
{[%clk 0:00:47]} 43... a5 {[%clk 0:00:04]} 44. bxa5 {[%clk 0:00:45.2]} 44...
Kxa5 {[%clk 0:00:04.7]} 45. Kb2 {[%clk 0:00:44.7]} 45... Kb5 {[%clk 0:00:05.2]}
46. Kb3 {[%clk 0:00:44.7]} 46... Kc5 {[%clk 0:00:05]} 47. Kc3 {[%clk 0:00:44.7]}
47... Kb5 {[%clk 0:00:05.1]} 48. Kb3 {[%clk 0:00:44.9]} 48... f5 {[%clk
0:00:05.2]} 49. Kc3 {[%clk 0:00:41]} 49... Ka4 {[%clk 0:00:05.4]} 50. Kb2 {[%clk
0:00:40.8]} 50... b6 {[%clk 0:00:04.7]} 51. Ka2 {[%clk 0:00:40.1]} 51... b5
{[%clk 0:00:05.2]} 52. Kb2 {[%clk 0:00:39.6]} 52... b4 {[%clk 0:00:05.6]} 53.
axb4 {[%clk 0:00:39.8]} 53... Kxb4 {[%clk 0:00:06.3]} 54. Kc2 {[%clk 0:00:39.9]}
54... Kc4 {[%clk 0:00:06.6]} 55. Kd2 {[%clk 0:00:40.3]} 55... Kd4 {[%clk
0:00:07]} 56. Ke2 {[%clk 0:00:39.2]} 56... Ke4 {[%clk 0:00:06.4]} 57. Ke1 {[%clk
0:00:38.6]} 57... Kd3 {[%clk 0:00:06.3]} 58. Kd1 {[%clk 0:00:38.4]} 58... Ke4
{[%clk 0:00:05.4]} 59. Ke2 {[%clk 0:00:38.5]} 59... f4 {[%clk 0:00:06]} 60. Ke1
{[%clk 0:00:30.6]} 60... fxg3 {[%clk 0:00:05.5]} 61. fxg3 {[%clk 0:00:30.9]}
61... Kf3 {[%clk 0:00:06.2]} 0-1

[Event "Late-Titled-Tuesday-Blitz-June-25-2024"]
[Site "Chess.com"]
[Date "2024.06.25"]
[Round "3"]
[White "rasmussvane"]
[Black "Meri-Arabidze"]
[Result "1-0"]
[WhiteElo "2981"]
[BlackElo "2692"]
[TimeControl "180+1"]
[EndTime "14:28:31 PDT"]
[Termination "rasmussvane won on time"]

1. Nf3 {[%clk 0:02:58.4]} 1... Nf6 {[%clk 0:02:59.7]} 2. g3 {[%clk 0:02:57.7]}
2... g6 {[%clk 0:02:59.8]} 3. Bg2 {[%clk 0:02:58]} 3... Bg7 {[%clk 0:03:00.2]}
4. O-O {[%clk 0:02:58.3]} 4... O-O {[%clk 0:03:00.2]} 5. d4 {[%clk 0:02:58]}
5... d5 {[%clk 0:03:00]} 6. c4 {[%clk 0:02:55.9]} 6... c6 {[%clk 0:03:00.1]} 7.
Qb3 {[%clk 0:02:55.7]} 7... a5 {[%clk 0:02:52.9]} 8. Rd1 {[%clk 0:02:55.3]} 8...
a4 {[%clk 0:02:52.8]} 9. Qb4 {[%clk 0:02:54.8]} 9... Qa5 {[%clk 0:02:45.2]} 10.
Qxa5 {[%clk 0:02:54.1]} 10... Rxa5 {[%clk 0:02:45.9]} 11. Bf4 {[%clk 0:02:54.1]}
11... Nbd7 {[%clk 0:02:42.5]} 12. Na3 {[%clk 0:02:50.9]} 12... Ne4 {[%clk
0:02:36.8]} 13. Rac1 {[%clk 0:02:50]} 13... Ndf6 {[%clk 0:02:33.5]} 14. Be5
{[%clk 0:02:39.1]} 14... Be6 {[%clk 0:02:24.9]} 15. Ne1 {[%clk 0:02:15.8]} 15...
Nd7 {[%clk 0:01:45.5]} 16. Bxg7 {[%clk 0:02:12]} 16... Kxg7 {[%clk 0:01:45.6]}
17. Nd3 {[%clk 0:02:05.1]} 17... Nd6 {[%clk 0:01:21.8]} 18. Nf4 {[%clk
0:01:58.9]} 18... g5 {[%clk 0:00:52.8]} 19. Nxe6+ {[%clk 0:01:35.8]} 19... fxe6
{[%clk 0:00:53.7]} 20. Bh3 {[%clk 0:01:34.9]} 20... Nf5 {[%clk 0:00:46.1]} 21.
Rd2 {[%clk 0:01:07.6]} 21... h5 {[%clk 0:00:44.7]} 22. Re1 {[%clk 0:01:02.6]}
22... Nf6 {[%clk 0:00:39.6]} 23. f3 {[%clk 0:00:50.8]} 23... g4 {[%clk
0:00:33.2]} 24. Bg2 {[%clk 0:00:47.8]} 24... Ne3 {[%clk 0:00:32.3]} 25. cxd5
{[%clk 0:00:30.5]} 25... exd5 {[%clk 0:00:33.2]} 26. Rd3 {[%clk 0:00:30.7]}
26... Nxg2 {[%clk 0:00:32.6]} 27. Kxg2 {[%clk 0:00:29.4]} 27... Raa8 {[%clk
0:00:25.8]} 28. Nb1 {[%clk 0:00:29]} 28... Rae8 {[%clk 0:00:23.6]} 29. Re3
{[%clk 0:00:21.5]} 29... Nd7 {[%clk 0:00:17]} 30. f4 {[%clk 0:00:16.5]} 30...
Nb6 {[%clk 0:00:10.9]} 31. Nd2 {[%clk 0:00:14.6]} 31... e6 {[%clk 0:00:09.2]}
32. Re5 {[%clk 0:00:14.1]} 32... Rf5 {[%clk 0:00:08.5]} 33. e4 {[%clk
0:00:09.5]} 33... Rxe5 {[%clk 0:00:08.1]} 34. fxe5 {[%clk 0:00:09.3]} 34... Rf8
{[%clk 0:00:06.5]} 35. Re2 {[%clk 0:00:07.6]} 35... Kg6 {[%clk 0:00:05.9]} 36.
Nb1 {[%clk 0:00:06.2]} 36... Kg5 {[%clk 0:00:04.6]} 37. Nc3 {[%clk 0:00:06.6]}
37... h4 {[%clk 0:00:04.5]} 38. gxh4+ {[%clk 0:00:07.5]} 38... Kxh4 {[%clk
0:00:04.8]} 39. exd5 {[%clk 0:00:07.1]} 39... cxd5 {[%clk 0:00:05.1]} 40. Nb5
{[%clk 0:00:06.9]} 40... Rf4 {[%clk 0:00:04.1]} 41. b3 {[%clk 0:00:06.5]} 41...
axb3 {[%clk 0:00:03.9]} 42. axb3 {[%clk 0:00:07.4]} 42... Nd7 {[%clk 0:00:02.1]}
43. Rd2 {[%clk 0:00:07.1]} 43... Nb8 {[%clk 0:00:01.8]} 44. Nc7 {[%clk
0:00:07.4]} 44... Nc6 {[%clk 0:00:02.1]} 45. Nxe6 {[%clk 0:00:07.9]} 45... Re4
{[%clk 0:00:02.7]} 46. Rd3 {[%clk 0:00:03.9]} 46... Re2+ {[%clk 0:00:02.1]} 47.
Kg1 {[%clk 0:00:04.5]} 47... Rb2 {[%clk 0:00:02.4]} 48. Nf4 {[%clk 0:00:04.9]}
48... Nb4 {[%clk 0:00:02]} 49. Re3 {[%clk 0:00:04.5]} 49... Kg5 {[%clk
0:00:02.3]} 50. Ne6+ {[%clk 0:00:04.1]} 50... Kf5 {[%clk 0:00:02.8]} 51. Ng7+
{[%clk 0:00:04.5]} 51... Kf4 {[%clk 0:00:03.3]} 52. Re1 {[%clk 0:00:04.3]} 52...
Nd3 {[%clk 0:00:03]} 53. Rf1+ {[%clk 0:00:04.8]} 53... Ke3 {[%clk 0:00:03.6]}
54. e6 {[%clk 0:00:05.1]} 54... Nf2 {[%clk 0:00:03.8]} 55. Rxf2 {[%clk 0:00:04]}
55... Rxf2 {[%clk 0:00:03.4]} 56. e7 {[%clk 0:00:04.5]} 56... Kf3 {[%clk
0:00:02.2]} 57. e8=Q {[%clk 0:00:04.8]} 57... Rg2+ {[%clk 0:00:02.6]} 58. Kf1
{[%clk 0:00:05.5]} 58... Rxh2 {[%clk 0:00:02.5]} 59. Qf7+ {[%clk 0:00:05.4]}
59... Kg3 {[%clk 0:00:02.7]} 60. Nf5+ {[%clk 0:00:05.9]} 60... Kf4 {[%clk
0:00:02.8]} 61. Qc7+ {[%clk 0:00:06.1]} 61... Kxf5 {[%clk 0:00:02.1]} 62. Qxh2
{[%clk 0:00:06.7]} 1-0

[Event "Late-Titled-Tuesday-Blitz-June-25-2024"]
[Site "Chess.com"]
[Date "2024.06.25"]
[Round "3"]
[White "Viktoker"]
[Black "arenal72"]
[Result "1-0"]
[WhiteElo "2486"]
[BlackElo "2683"]
[TimeControl "180+1"]
[EndTime "14:28:32 PDT"]
[Termination "Viktoker won by checkmate"]

1. d4 {[%clk 0:02:55]} 1... d6 {[%clk 0:02:59.3]} 2. Nf3 {[%clk 0:02:54.7]} 2...
Nf6 {[%clk 0:02:59]} 3. Nc3 {[%clk 0:02:54.3]} 3... Bf5 {[%clk 0:02:53.7]} 4.
Bg5 {[%clk 0:02:50.6]} 4... Nbd7 {[%clk 0:02:53]} 5. Nh4 {[%clk 0:02:46.2]} 5...
Bg6 {[%clk 0:02:50.9]} 6. Nxg6 {[%clk 0:02:46.4]} 6... hxg6 {[%clk 0:02:50.5]}
7. e4 {[%clk 0:02:47]} 7... e6 {[%clk 0:02:47.7]} 8. Be2 {[%clk 0:02:45.4]} 8...
Be7 {[%clk 0:02:47.2]} 9. Qd2 {[%clk 0:02:41.3]} 9... a6 {[%clk 0:02:35.2]} 10.
a4 {[%clk 0:02:37.7]} 10... Rc8 {[%clk 0:02:30.5]} 11. O-O {[%clk 0:02:35]}
11... c5 {[%clk 0:02:28.3]} 12. dxc5 {[%clk 0:02:16.5]} 12... Nxc5 {[%clk
0:02:24.6]} 13. Qe3 {[%clk 0:02:15.6]} 13... Qc7 {[%clk 0:02:19.6]} 14. Rad1
{[%clk 0:02:11]} 14... d5 {[%clk 0:02:16.8]} 15. e5 {[%clk 0:02:11]} 15... Nfe4
{[%clk 0:02:06.6]} 16. Nxe4 {[%clk 0:02:09.2]} 16... Nxe4 {[%clk 0:02:03.8]} 17.
Bxe7 {[%clk 0:02:08.3]} 17... Qxe7 {[%clk 0:01:58.8]} 18. c4 {[%clk 0:02:08]}
18... Qh4 {[%clk 0:01:37.9]} 19. h3 {[%clk 0:02:03.2]} 19... dxc4 {[%clk
0:01:37.7]} 20. Rd4 {[%clk 0:02:02.9]} 20... c3 {[%clk 0:01:31.8]} 21. Rxe4
{[%clk 0:01:59.1]} 21... Qe7 {[%clk 0:01:28.1]} 22. bxc3 {[%clk 0:01:58.1]}
22... O-O {[%clk 0:01:27.8]} 23. Rd4 {[%clk 0:01:55.7]} 23... Qa3 {[%clk
0:01:27]} 24. c4 {[%clk 0:01:46.1]} 24... Qxa4 {[%clk 0:01:24.9]} 25. Rfd1
{[%clk 0:01:45.1]} 25... Rc5 {[%clk 0:01:22.4]} 26. Rd7 {[%clk 0:01:43.5]} 26...
Qa5 {[%clk 0:01:18.5]} 27. Rxb7 {[%clk 0:01:41.7]} 27... Rxe5 {[%clk 0:01:18.2]}
28. Qd2 {[%clk 0:01:36]} 28... Qc5 {[%clk 0:01:11.4]} 29. Bf1 {[%clk 0:01:31.3]}
29... Rf5 {[%clk 0:01:04.4]} 30. Qd4 {[%clk 0:01:30.1]} 30... Qc6 {[%clk
0:01:02.4]} 31. Rb6 {[%clk 0:01:28.8]} 31... Qa4 {[%clk 0:01:00.9]} 32. Ra1
{[%clk 0:01:14.4]} 32... Qe8 {[%clk 0:00:53.4]} 33. Rbxa6 {[%clk 0:01:13.9]}
33... Qb8 {[%clk 0:00:50]} 34. c5 {[%clk 0:01:12.9]} 34... Rd8 {[%clk
0:00:48.8]} 35. Qe3 {[%clk 0:01:09.5]} 35... Re5 {[%clk 0:00:44.5]} 36. Qg3
{[%clk 0:01:08.9]} 36... Rxc5 {[%clk 0:00:41.8]} 37. Qxb8 {[%clk 0:01:02]} 37...
Rxb8 {[%clk 0:00:42.7]} 38. Ra8 {[%clk 0:01:02.3]} 38... Rcc8 {[%clk 0:00:38.1]}
39. Rxb8 {[%clk 0:01:01.5]} 39... Rxb8 {[%clk 0:00:39]} 40. g4 {[%clk
0:01:01.5]} 40... g5 {[%clk 0:00:36.7]} 41. Bg2 {[%clk 0:01:01.6]} 41... g6
{[%clk 0:00:34.7]} 42. Ra8 {[%clk 0:01:01.2]} 42... Rxa8 {[%clk 0:00:34.3]} 43.
Bxa8 {[%clk 0:01:02.1]} 43... Kg7 {[%clk 0:00:35]} 44. Kg2 {[%clk 0:01:01.9]}
44... Kf6 {[%clk 0:00:35.2]} 45. Kf3 {[%clk 0:01:02]} 45... Ke5 {[%clk
0:00:35.9]} 46. Ke3 {[%clk 0:01:01.6]} 46... f6 {[%clk 0:00:35.5]} 47. Bc6
{[%clk 0:01:01.4]} 47... f5 {[%clk 0:00:35.1]} 48. Bd7 {[%clk 0:00:59.6]} 48...
Kf6 {[%clk 0:00:32.2]} 49. Bc8 {[%clk 0:00:58.7]} 49... Ke7 {[%clk 0:00:31.3]}
50. Kd4 {[%clk 0:00:58.2]} 50... Kd6 {[%clk 0:00:31.5]} 51. Ke3 {[%clk
0:00:51.9]} 51... Ke5 {[%clk 0:00:30.7]} 52. Bb7 {[%clk 0:00:50.4]} 52... Kd6
{[%clk 0:00:28.4]} 53. Ba6 {[%clk 0:00:49.6]} 53... Ke5 {[%clk 0:00:28.1]} 54.
Bb5 {[%clk 0:00:49.8]} 54... Kf6 {[%clk 0:00:27.6]} 55. Kd4 {[%clk 0:00:47.8]}
55... e5+ {[%clk 0:00:25.8]} 56. Kd5 {[%clk 0:00:48.1]} 56... e4 {[%clk
0:00:26.1]} 57. Kd4 {[%clk 0:00:47.2]} 57... Ke6 {[%clk 0:00:24.6]} 58. Bc6
{[%clk 0:00:46.1]} 58... Kf6 {[%clk 0:00:23.9]} 59. Be8 {[%clk 0:00:45.2]} 59...
Kg7 {[%clk 0:00:16.4]} 60. Ke5 {[%clk 0:00:45.4]} 60... f4 {[%clk 0:00:15.5]}
61. Kxe4 {[%clk 0:00:45]} 61... Kf6 {[%clk 0:00:16]} 62. Kd5 {[%clk 0:00:43.3]}
62... Kg7 {[%clk 0:00:15.1]} 63. Ke6 {[%clk 0:00:43]} 63... Kf8 {[%clk
0:00:14.1]} 64. Bxg6 {[%clk 0:00:42.9]} 64... Kg7 {[%clk 0:00:15]} 65. Bd3
{[%clk 0:00:42.9]} 65... Kh6 {[%clk 0:00:15.9]} 66. Kf6 {[%clk 0:00:43]} 66...
f3 {[%clk 0:00:15.8]} 67. Kf5 {[%clk 0:00:42.4]} 67... Kg7 {[%clk 0:00:15.7]}
68. Kxg5 {[%clk 0:00:42.9]} 68... Kf7 {[%clk 0:00:16]} 69. Kf4 {[%clk
0:00:43.3]} 69... Kg7 {[%clk 0:00:16.9]} 70. Kxf3 {[%clk 0:00:44]} 70... Kf7
{[%clk 0:00:17.8]} 71. Kf4 {[%clk 0:00:44.5]} 71... Kg7 {[%clk 0:00:18.7]} 72.
Kg5 {[%clk 0:00:45.1]} 72... Kf7 {[%clk 0:00:19.6]} 73. f4 {[%clk 0:00:45.8]}
73... Kg7 {[%clk 0:00:20.5]} 74. f5 {[%clk 0:00:46.5]} 74... Kf7 {[%clk
0:00:21.4]} 75. f6 {[%clk 0:00:46.9]} 75... Kf8 {[%clk 0:00:21.8]} 76. Kg6
{[%clk 0:00:47.1]} 76... Kg8 {[%clk 0:00:22]} 77. h4 {[%clk 0:00:47.6]} 77...
Kf8 {[%clk 0:00:22.9]} 78. h5 {[%clk 0:00:48]} 78... Kg8 {[%clk 0:00:23.8]} 79.
h6 {[%clk 0:00:48.4]} 79... Kf8 {[%clk 0:00:24.7]} 80. h7 {[%clk 0:00:48.2]}
80... Ke8 {[%clk 0:00:25.1]} 81. h8=Q+ {[%clk 0:00:48.5]} 81... Kd7 {[%clk
0:00:26]} 82. Qg7+ {[%clk 0:00:48.7]} 82... Kd6 {[%clk 0:00:26.9]} 83. f7 {[%clk
0:00:49.1]} 83... Kc5 {[%clk 0:00:26.8]} 84. f8=Q+ {[%clk 0:00:49.3]} 84... Kd5
{[%clk 0:00:26.5]} 85. Bf5 {[%clk 0:00:48.7]} 85... Kc6 {[%clk 0:00:25.5]} 86.
Qd7+ {[%clk 0:00:48.3]} 86... Kb6 {[%clk 0:00:24.8]} 87. Qfc8 {[%clk 0:00:47.3]}
87... Ka5 {[%clk 0:00:24.7]} 88. Qdb7 {[%clk 0:00:46.3]} 88... Ka4 {[%clk
0:00:24.2]} 89. Qca8# {[%clk 0:00:47.2]} 1-0